bitfinex/quotes_SOLUSD_20260310
["timestamp","ask_amount","ask_price","bid_price","bid_amount"]
[1773102185700,4.22453565,85.3,85.269,1.98458887]
[1773102185910,1.82222577,85.311,85.28,4.22453565]
[1773102186076,1.82222577,85.328,85.291,1.98458887]
[1773102186988,1.82222577,85.328,85.29,4.22453565]
[1773102186989,1.82222577,85.319,85.284,1.98458887]
[1773102187200,1.82222577,85.299,85.263,1.98458887]
[1773102187501,1.82222577,85.299,85.271,1.98458887]
[1773102188379,1.82222577,85.299,85.273,1.98458887]
[1773102188980,1.82222577,85.309,85.273,1.98458887]
[1773102192286,1.82222577,85.309,85.275,1.98458887]
[1773102192500,13.5444558,85.308,85.275,1.98458887]
[1773102192793,1.82222577,85.307,85.275,1.98458887]
[1773102195206,1.82222577,85.289,85.27,1.98458887]
[1773102195504,1.82222577,85.295,85.272,13.71169271]
[1773102196998,1.82222577,85.289,85.265,1.98458887]
[1773102198889,1.82222577,85.279,85.261,11.72869189]
[1773102199689,1.82222577,85.269,85.241,1.98458887]
[1773102199893,4.22453565,85.26,85.241,1.98458887]
[1773102200906,1.82222577,85.264,85.243,1.98458887]
[1773102201104,1.82222577,85.304,85.251,1.98458887]
[1773102201284,1.82222577,85.279,85.249,1.98458887]
[1773102202909,4.22453565,85.27,85.251,1.98458887]
[1773102203103,6.04676142,85.27,85.251,1.98458887]
[1773102203488,1.82222577,85.269,85.251,1.98458887]
[1773102205213,4.22453565,85.26,85.244,11.73092054]
[1773102205592,1.82222577,85.261,85.244,11.73092054]
[1773102205816,1.82222577,85.259,85.24,1.98458887]
[1773102206104,1.82222577,85.259,85.234,1.98458887]
[1773102206303,4.22453565,85.26,85.234,1.98458887]
[1773102206813,4.22453565,85.28,85.241,1.98458887]
[1773102206814,1.82222577,85.278,85.241,1.98458887]
[1773102207015,1.82222577,85.278,85.233,41.06390716]
[1773102207016,1.82222577,85.288,85.251,1.98458887]
[1773102207317,1.82222577,85.288,85.253,1.98458887]
[1773102207516,1.82222577,85.287,85.253,1.98458887]
[1773102210502,1.82222577,85.287,85.255,1.98458887]
[1773102212612,1.82222577,85.287,85.257,1.98458887]
[1773102213404,1.9572181,85.297,85.271,1.83230386]
[1773102214316,1.9572181,85.299,85.271,1.83230386]
[1773102215002,1.9572181,85.299,85.273,1.83230386]
[1773102215216,1.9572181,85.299,85.272,11.7271789]
[1773102215515,1.9572181,85.297,85.272,11.7271789]
[1773102216099,1.9572181,85.297,85.273,1.83230386]
[1773102218623,1.9572181,85.297,85.274,11.72690386]
[1773102220539,1.9572181,85.279,85.235,3.69383402]
[1773102220708,1.9572181,85.279,85.246,1.83230386]
[1773102221102,1.9572181,85.279,85.251,1.83230386]
[1773102221329,1.9572181,85.289,85.261,1.83230386]
[1773102221627,1.9572181,85.279,85.236,1.83230386]
[1773102221821,1.9572181,85.279,85.251,1.83230386]
[1773102222200,1.9572181,85.285,85.251,1.83230386]
[1773102223727,1.9572181,85.285,85.253,1.83230386]
[1773102224527,1.9572181,85.279,85.252,41.0547553]
[1773102225021,1.9572181,85.279,85.253,1.83230386]
[1773102226321,1.84530815,85.269,85.254,11.72965491]
[1773102226911,1.84530815,85.277,85.254,13.65239183]
[1773102227831,1.84530815,85.275,85.254,13.65239183]
[1773102228128,1.84530815,85.275,85.255,1.92273692]
[1773102229030,1.84530815,85.287,85.255,1.92273692]
[1773102229223,1.84530815,85.285,85.255,1.92273692]
[1773102230626,1.84530815,85.285,85.256,11.72937975]
[1773102230926,1.84530815,85.299,85.271,1.92273692]
[1773102231631,11.72288147,85.304,85.271,1.92273692]
[1773102232133,1.84530815,85.303,85.271,1.92273692]
[1773102232834,1.84530815,85.299,85.273,1.92273692]
[1773102236828,1.84530815,85.297,85.274,11.72690386]
[1773102240343,1.84530815,85.303,85.274,1.92273692]
[1773102242350,4.22691022,85.32,85.281,1.92273692]
[1773102242553,1.84530815,85.335,85.301,1.92273692]
[1773102242838,1.84530815,85.344,85.301,1.92273692]
[1773102243022,1.84530815,85.344,85.311,4.55e-06]
[1773102243920,4.22691022,85.35,85.31,4.22691022]
[1773102243921,1.80854101,85.342,85.31,4.22691022]
[1773102244116,1.80854101,85.348,85.31,4.0496829]
[1773102244343,1.80854101,85.348,85.302,41.03069094]
[1773102244524,1.80854101,85.348,85.31,4.22691022]
[1773102244921,1.80854101,85.348,85.311,1.96494318]
[1773102245832,1.80854101,85.347,85.313,1.96494318]
[1773102248550,1.80854101,85.347,85.315,1.96494318]
[1773102248840,1.80854101,85.347,85.321,1.96494318]
[1773102249625,11.71551163,85.357,85.321,1.96494318]
[1773102250239,1.80854101,85.354,85.321,1.96494318]
[1773102251431,11.71605025,85.353,85.322,11.7203066]
[1773102251649,11.71605025,85.353,85.323,1.96494318]
[1773102252031,1.80854101,85.354,85.323,1.96494318]
[1773102252255,1.80854101,85.348,85.323,1.96494318]
[1773102253738,1.80854101,85.348,85.325,1.96494318]
[1773102254257,11.71597664,85.354,85.325,1.96494318]
[1773102254553,1.80854101,85.348,85.325,1.96494318]
[1773102254866,1.80854101,85.348,85.324,11.72003187]
[1773102254867,1.80854101,85.348,85.326,13.68470034]
[1773102255548,11.71687346,85.347,85.326,13.68470034]
[1773102255748,1.80854101,85.347,85.326,11.71975716]
[1773102257055,1.80854101,85.347,85.321,11.72044397]
[1773102257633,19.19678456,85.349,85.293,1.17242915]
[1773102257634,1.80854101,85.345,85.319,1.96494318]
[1773102257835,1.80854101,85.339,85.317,11.72098907]
[1773102258150,1.80854101,85.348,85.32,4.22691022]
[1773102258457,1.80854101,85.348,85.321,1.96494318]
[1773102258936,7.48009283,85.349,85.321,1.96494318]
[1773102259130,7.48009283,85.349,85.301,3.69383402]
[1773102259131,7.48009283,85.349,85.331,1.96494318]
[1773102260347,1.80854101,85.348,85.323,1.96494318]
[1773102262057,1.80854101,85.348,85.32,4.22691022]
[1773102262058,0.14666924,85.36,85.34,4.22691022]
[1773102262240,0.14666924,85.36,85.341,1.96494318]
[1773102262741,0.2,85.37,85.324,41.02011156]
[1773102262742,0.2,85.37,85.351,1.96494318]
[1773102263245,1.80854101,85.369,85.34,1.96494318]
[1773102263556,0.2,85.37,85.351,1.96494318]
[1773102263766,0.2,85.37,85.361,1.96494318]
[1773102264138,0.2,85.37,85.361,13.67976733]
[1773102264635,0.2,85.37,85.362,1.96494318]
[1773102265550,1.80854101,85.381,85.361,11.71482415]
[1773102265947,1.80854101,85.381,85.361,13.67976733]
[1773102267451,11.71206671,85.383,85.361,13.67976733]
[1773102267452,13.52088582,85.38,85.361,13.67976733]
[1773102268341,1.80854101,85.38,85.361,13.67976733]
[1773102268546,11.71186433,85.384,85.362,1.96494318]
[1773102268738,13.52040534,85.384,85.362,1.96494318]
[1773102269143,1.80854101,85.383,85.362,1.96494318]
[1773102269361,1.80854101,85.389,85.364,1.96494318]
[1773102269666,0.1,85.39,85.371,1.96494318]
[1773102269882,4.42515111,85.396,85.381,0.83257922]
[1773102270046,1.80854101,85.411,85.39,4.22691022]
[1773102270245,1.98995896,85.418,85.38,4.22691022]
[1773102271060,1.98995896,85.418,85.39,4.22691022]
[1773102271364,1.98995896,85.418,85.366,3.69383402]
[1773102271365,1.98995896,85.418,85.38,4.22691022]
[1773102271666,1.98995896,85.409,85.381,11.71220763]
[1773102272172,1.98995896,85.409,85.39,4.22691022]
[1773102272380,1.98995896,85.419,85.39,4.22691022]
[1773102273773,1.98995896,85.419,85.391,11.71083603]
[1773102273958,1.98995896,85.417,85.391,11.71083603]
[1773102274159,4.22691022,85.43,85.4,4.22691022]
[1773102274473,1.98995896,85.429,85.4,4.22691022]
[1773102275069,1.98995896,85.429,85.41,4.22691022]
[1773102275269,1.98995896,85.438,85.41,4.22691022]
[1773102275864,1.98995896,85.438,85.42,4.22691022]
[1773102276768,1.98995896,85.438,85.411,11.7080938]
[1773102277180,1.98995896,85.436,85.4,4.22691022]
[1773102277869,1.98995896,85.429,85.403,11.70907911]
[1773102278963,1.98995896,85.438,85.403,11.70907911]
[1773102279463,1.98995896,85.429,85.403,11.70907911]
[1773102280255,1.98995896,85.427,85.391,40.98785747]
[1773102280467,1.98995896,85.427,85.391,11.71083603]
[1773102280680,11.70576391,85.428,85.35,117.16461627]
[1773102280681,1.98995896,85.409,85.35,117.16461627]
[1773102280859,1.98995896,85.409,85.35,146.45577034]
[1773102281065,1.98995896,85.409,85.37,4.22691022]
[1773102282176,1.98995896,85.419,85.39,4.22691022]
[1773102282560,1.98995896,85.419,85.391,11.71083603]
[1773102282974,1.98995896,85.417,85.391,11.71083603]
[1773102283190,1.98995896,85.417,85.381,11.71220763]
[1773102283368,1.98995896,85.409,85.381,11.71220763]
[1773102284180,1.98995896,85.409,85.371,11.71357955]
[1773102284388,52.78,85.439,85.371,40.99752843]
[1773102284389,1.98995896,85.417,85.371,40.99752843]
[1773102284564,1.98995896,85.417,85.39,4.22691022]
[1773102284764,4.22691022,85.42,85.39,4.22691022]
[1773102284765,1.98995896,85.415,85.39,4.22691022]
[1773102284994,1.98995896,85.415,85.391,11.71083603]
[1773102285784,1.98995896,85.415,85.39,4.21358301]
[1773102286163,1.98995896,85.415,85.381,40.99272671]
[1773102286889,1.98995896,85.409,85.381,11.71220763]
[1773102287780,1.98995896,85.389,85.362,11.71481455]
[1773102288174,1.98995896,85.379,85.341,11.71769723]
[1773102288784,87.80761935,85.414,85.36,4.21358301]
[1773102288785,1.98995896,85.413,85.36,4.21358301]
[1773102289077,1.98995896,85.399,85.37,4.21358301]
[1773102289281,1.98995896,85.407,85.38,4.21358301]
[1773102291166,1.98995896,85.407,85.381,11.71220763]
[1773102292094,1.98995896,85.407,85.381,40.99272671]
[1773102292285,1.98995896,85.407,85.381,11.71220763]
[1773102293184,1.98995896,85.405,85.381,11.71220763]
[1773102293687,1.98995896,85.399,85.362,29.2867218]
[1773102293886,1.98995896,85.399,85.363,11.71467731]
[1773102294063,1.98995896,85.389,85.363,41.0013706]
[1773102294873,1.98995896,85.379,85.358,11.71529459]
[1773102296089,1.98995896,85.377,85.345,29.29281417]
[1773102296479,1.98995896,85.369,85.345,29.29281417]
[1773102297192,1.98995896,85.369,85.341,11.71769723]
[1773102298088,1.98995896,85.367,85.334,0.02281585]
[1773102298294,1.98995896,85.367,85.34,4.21358301]
[1773102299084,1.98995896,85.367,85.341,11.71769723]
[1773102299495,1.98995896,85.359,85.341,11.71769723]
[1773102300484,4.21358301,85.37,85.342,1.93116786]
[1773102300696,11.70973898,85.399,85.361,1.93116786]
[1773102300899,11.70876703,85.407,85.361,1.93116786]
[1773102301091,11.70876703,85.407,85.371,1.93116786]
[1773102301594,11.70876703,85.407,85.331,3.69383402]
[1773102301595,4.21358301,85.39,85.36,4.21358301]
[1773102301996,4.21358301,85.39,85.355,1.93116786]
[1773102302503,1.8839724,85.389,85.355,1.93116786]
[1773102303605,1.89179282,85.387,85.351,11.71632435]
[1773102303994,11.71124748,85.388,85.352,1.93787524]
[1773102303995,1.89179282,85.379,85.352,1.93787524]
[1773102304304,1.89179282,85.379,85.351,11.71632435]
[1773102304692,1.89179282,85.369,85.351,11.71632435]
[1773102306603,1.89179282,85.359,85.329,29.29835907]
[1773102306793,1.89179282,85.359,85.331,11.71907044]
[1773102308187,1.89179282,85.349,85.331,11.71907044]
[1773102308592,1.89179282,85.349,85.322,1.93787524]
[1773102310782,1.89179282,85.349,85.323,13.65804447]
[1773102311404,1.89179282,85.349,85.324,1.93787524]
[1773102312885,1.89179282,85.349,85.325,11.71989452]
[1773102314791,1.89179282,85.348,85.316,1.93787524]
[1773102315409,1.89179282,85.339,85.315,41.02443884]
[1773102316097,1.89179282,85.339,85.315,11.72126824]
[1773102317203,1.89179282,85.339,85.312,1.93787524]
[1773102318493,1.89179282,85.339,85.313,11.72154302]
[1773102320294,1.89179282,85.339,85.315,11.72126824]
[1773102323101,1.89179282,85.339,85.311,41.02636235]
[1773102323815,1.89179282,85.339,85.312,1.93787524]
[1773102324495,1.89179282,85.339,85.314,1.93787524]
[1773102324692,1.89179282,85.338,85.314,1.93787524]
[1773102325206,1.89179282,85.329,85.301,13.66106723]
[1773102325523,4.21358301,85.36,85.302,1.93787524]
[1773102325524,1.89179282,85.335,85.302,1.93787524]
[1773102325819,1.89179282,85.335,85.311,1.93787524]
[1773102326119,1.89179282,85.335,85.302,1.93787524]
[1773102326815,1.89179282,85.333,85.304,1.93787524]
[1773102329015,4.21358301,85.33,85.306,1.93787524]
[1773102329201,1.89179282,85.329,85.306,1.93787524]
[1773102329600,1.89179282,85.329,85.305,11.72264228]
[1773102330105,1.89179282,85.329,85.29,4.21358301]
[1773102330293,11.7189331,85.332,85.291,11.72456648]
[1773102330294,1.89179282,85.319,85.291,11.72456648]
[1773102330498,1.89179282,85.319,85.292,1.93787524]
[1773102332119,1.89179282,85.319,85.293,11.72429155]
[1773102332305,1.89179282,85.319,85.294,1.93787524]
[1773102333100,6.10537583,85.33,85.301,1.93787524]
[1773102333305,11.71522627,85.359,85.321,1.95480914]
[1773102333501,11.71469851,85.363,85.331,1.95480914]
[1773102333714,11.71417481,85.367,85.331,1.95480914]
[1773102333915,4.21358301,85.37,85.341,1.95480914]
[1773102334219,11.71365524,85.371,85.342,11.71755993]
[1773102334428,11.71365524,85.371,85.343,1.95480914]
[1773102335308,1.95155931,85.37,85.345,1.95480914]
[1773102335820,1.95155931,85.369,85.345,1.95480914]
[1773102336019,13.66541328,85.369,85.345,1.95480914]
[1773102336219,13.66541328,85.369,85.344,11.71728533]
[1773102336220,1.95155931,85.368,85.344,11.71728533]
[1773102337827,1.95155931,85.366,85.339,11.71797185]
[1773102339531,1.95155931,85.359,85.328,1.95480914]
[1773102339906,1.95155931,85.357,85.33,1.95480914]
[1773102340407,11.7148791,85.362,85.331,1.95480914]
[1773102340613,1.95155931,85.362,85.331,1.95480914]
[1773102340821,1.95155931,85.359,85.331,1.95480914]
[1773102342425,1.95155931,85.359,85.333,1.95480914]
[1773102342614,1.95155931,85.369,85.341,1.95480914]
[1773102345733,1.95155931,85.369,85.343,1.95480914]
[1773102346218,11.71299032,85.376,85.351,1.36884122]
[1773102347533,1.95155931,85.375,85.343,11.71742263]
[1773102347826,4.21822219,85.37,85.343,13.67223177]
[1773102348027,1.95155931,85.369,85.343,13.67223177]
[1773102350235,1.93924167,85.359,85.343,11.71742263]
[1773102355737,13.65323286,85.368,85.343,11.71742263]
[1773102355939,4.21822219,85.4,85.343,11.71742263]
[1773102355940,1.93924167,85.379,85.343,11.71742263]
[1773102356235,1.93924167,85.379,85.351,1.84689218]
[1773102358039,1.93924167,85.379,85.352,13.56307926]
[1773102358451,1.93924167,85.378,85.352,11.71618708]
[1773102358618,1.93924167,85.378,85.34,4.21822219]
[1773102358619,1.93924167,85.369,85.348,11.71666585]
[1773102359831,1.93924167,85.369,85.333,1.84689218]
[1773102360039,4.21822219,85.4,85.331,1.84689218]
[1773102360040,1.93924167,85.359,85.331,1.84689218]
[1773102360941,1.93924167,85.359,85.33,11.71920778]
[1773102361433,1.93924167,85.359,85.331,1.84689218]
[1773102362251,1.93924167,85.357,85.325,1.84689218]
[1773102362425,1.93924167,85.349,85.322,1.84689218]
[1773102367026,1.93924167,85.349,85.324,1.91562046]
[1773102370149,1.93924167,85.349,85.325,11.71989452]
[1773102370347,1.88858934,85.348,85.325,11.71989452]
[1773102371354,1.88858934,85.339,85.3,1.91562046]
[1773102371644,11.71672879,85.349,85.28,11.54488005]
[1773102371645,1.88858934,85.319,85.291,1.91562046]
[1773102372027,1.88858934,85.332,85.301,1.91562046]
[1773102372225,1.88858934,85.332,85.285,41.03886966]
[1773102372226,1.88858934,85.348,85.32,4.21822219]
[1773102372433,1.88858934,85.348,85.321,1.91562046]
[1773102372734,1.88858934,85.339,85.309,1.91562046]
[1773102373140,1.88858934,85.339,85.302,41.03069094]
[1773102373141,13.60518824,85.349,85.321,1.91562046]
[1773102373450,1.88858934,85.35,85.321,1.91562046]
[1773102373954,1.88858934,85.348,85.321,1.91562046]
[1773102376347,1.88858934,85.346,85.322,11.7203066]
[1773102376532,1.88858934,85.346,85.323,1.91562046]
[1773102377756,1.88858934,85.344,85.317,1.91562046]
[1773102379032,1.88858934,85.339,85.312,11.72168042]
[1773102379435,1.88858934,85.339,85.313,1.91562046]
[1773102379636,4.21822219,85.35,85.313,1.91562046]
[1773102379844,1.88858934,85.351,85.321,1.91562046]
[1773102380763,4.21822219,85.35,85.321,1.91562046]
[1773102380945,1.88858934,85.345,85.321,1.91562046]
[1773102381452,1.88858934,85.345,85.323,1.91562046]
[1773102381850,11.71708504,85.346,85.323,1.91562046]
[1773102381851,1.88858934,85.343,85.323,1.91562046]
[1773102382157,1.88858934,85.348,85.323,1.91562046]
[1773102383455,1.88858934,85.348,85.32,29.30127997]
[1773102383456,1.88858934,85.348,85.325,1.91562046]
[1773102385562,13.60244331,85.369,85.33,4.21822219]
[1773102385740,1.88858934,85.368,85.331,1.91562046]
[1773102389767,1.88858934,85.366,85.333,1.91562046]
[1773102392068,1.88858934,85.364,85.335,1.91562046]
[1773102394071,1.83392181,85.359,85.331,1.9238816]
[1773102394260,1.83392181,85.359,85.325,1.9238816]
[1773102394470,1.83392181,85.349,85.325,1.9238816]
[1773102394656,1.83392181,85.355,85.33,6.14210379]
[1773102394864,1.83392181,85.355,85.33,1.9238816]
[1773102395257,1.83392181,85.355,85.322,1.9238816]
[1773102395777,11.71589364,85.355,85.323,11.72016923]
[1773102396071,1.83392181,85.354,85.323,41.02059232]
[1773102396569,1.83392181,85.353,85.324,1.9238816]
[1773102396770,1.83392181,85.349,85.324,1.9238816]
[1773102399278,1.83392181,85.349,85.326,1.9238816]
[1773102399880,1.83392181,85.375,85.326,1.9238816]
[1773102400088,1.83392181,85.374,85.341,1.9238816]
[1773102400465,1.83392181,85.369,85.341,1.9238816]
[1773102401375,1.83392181,85.367,85.341,1.9238816]
[1773102401973,1.83392181,85.367,85.342,11.71755993]
[1773102402176,1.83392181,85.367,85.343,1.9238816]
[1773102403264,1.83392181,85.365,85.343,1.9238816]
[1773102404086,1.83392181,85.365,85.344,11.71728533]
[1773102405087,1.83392181,85.365,85.345,1.9238816]
[1773102406175,1.83392181,85.388,85.351,1.9238816]
[1773102406485,1.83392181,85.388,85.361,1.9238816]
[1773102408190,11.71138463,85.387,85.361,1.9238816]
[1773102408381,1.83392181,85.386,85.361,1.9238816]
[1773102410895,1.89723834,85.384,85.361,1.9238816]
[1773102411083,1.89723834,85.384,85.363,1.99023243]
[1773102411597,1.89723834,85.379,85.357,11.7154252]
[1773102411769,1.89723834,85.379,85.352,13.70641951]
[1773102412272,1.89723834,85.379,85.353,1.99023243]
[1773102413898,4.21677532,85.38,85.348,1.99023243]
[1773102413899,1.89723834,85.377,85.348,1.99023243]
[1773102414801,1.89723834,85.377,85.352,1.99023243]
[1773102415302,1.89723834,85.386,85.361,1.99023243]
[1773102416081,1.89723834,85.384,85.361,1.99023243]
[1773102416285,1.89723834,85.384,85.362,11.71481455]
[1773102417807,1.89723834,85.403,85.363,1.99023243]
[1773102417988,1.89723834,85.399,85.363,1.99023243]
[1773102418297,1.89723834,85.397,85.365,1.99023243]
[1773102418493,1.89723834,85.397,85.371,1.99023243]
[1773102420197,1.89723834,85.397,85.365,1.99023243]
[1773102420491,1.89723834,85.395,85.367,1.99023243]
[1773102421309,1.89723834,85.395,85.366,11.71426563]
[1773102422087,1.89723834,85.395,85.367,1.99023243]
[1773102422294,1.89723834,85.395,85.366,11.71426563]
[1773102422295,1.89723834,85.405,85.371,1.99023243]
[1773102422488,1.89723834,85.405,85.36,4.21677532]
[1773102422489,19.08801774,85.432,85.391,1.99023243]
[1773102422684,4.21677532,85.42,85.391,1.99023243]
[1773102422882,1.89723834,85.409,85.384,1.99023243]
[1773102423097,1.89723834,85.409,85.377,1.99023243]
[1773102423404,1.89723834,85.415,85.391,1.99023243]
[1773102423696,1.9119334,85.409,85.381,1.84028184]
[1773102424481,1.9119334,85.409,85.382,11.71207045]
[1773102424682,1.9119334,85.409,85.383,1.84028184]
[1773102425801,1.9119334,85.409,85.384,11.71179612]
[1773102426386,1.9119334,85.409,85.385,1.84028184]
[1773102426592,1.9119334,85.419,85.391,1.84028184]
[1773102426901,1e-08,85.432,85.411,1.7212385]
[1773102427201,1.9119334,85.474,85.431,1.62114925]
[1773102427385,1.9119334,85.474,85.41,3.69383402]
[1773102427386,6.09572951,85.488,85.434,1.84028184]
[1773102427580,1e-08,85.485,85.46,4.21677532]
[1773102427982,0.1,85.5,85.471,1.84028184]
[1773102428183,7.75042377,85.508,85.461,11.70124384]
[1773102428184,7.75042377,85.508,85.481,1.84028184]
[1773102428383,11.69330791,85.519,85.482,1.84028184]
[1773102428580,4.21677532,85.49,85.466,1.84028184]
[1773102430099,11.69741136,85.489,85.466,1.84028184]
[1773102430894,1.9119334,85.488,85.449,1.84028184]
[1773102431095,6.12870872,85.48,85.449,1.84028184]
[1773102431294,1.9119334,85.469,85.449,1.84028184]
[1773102431505,1.9119334,85.469,85.444,1.84028184]
[1773102432306,13.61221888,85.468,85.444,1.84028184]
[1773102432519,13.61221888,85.468,85.437,13.54474097]
[1773102432520,6.12870872,85.46,85.437,13.54474097]
[1773102432808,6.12870872,85.46,85.438,1.84028184]
[1773102433501,1.9119334,85.459,85.438,1.84028184]
[1773102435612,1.9119334,85.449,85.432,77.1804292]
[1773102435998,1.9119334,85.456,85.432,77.1804292]
[1773102436203,1.9119334,85.456,85.433,1.84028184]
[1773102436785,4.21677532,85.45,85.433,1.84028184]
[1773102437000,1.9119334,85.456,85.433,1.84028184]
[1773102437206,1.9119334,85.456,85.432,77.1804292]
[1773102437207,4.21677532,85.47,85.442,11.70384588]
[1773102437396,11.70014859,85.469,85.443,1.84028184]
[1773102437599,1.9119334,85.469,85.438,1.84028184]
[1773102437905,11.6995681,85.474,85.441,1.84028184]
[1773102438307,1.9119334,85.477,85.441,1.84028184]
[1773102438509,11.69919041,85.476,85.441,1.84028184]
[1773102438809,1.9119334,85.485,85.451,1.84028184]
[1773102439012,1.9119334,85.485,85.437,40.96574992]
[1773102439013,13.60801023,85.499,85.47,4.21677532]
[1773102439311,11.69631682,85.497,85.471,1.84028184]
[1773102439516,1.9119334,85.496,85.466,1.84028184]
[1773102440003,11.69631682,85.497,85.44,7.91060934]
[1773102440004,1.9119334,85.489,85.451,1.84028184]
[1773102440211,1.9119334,85.489,85.455,1.84028184]
[1773102440510,1.9119334,85.489,85.454,11.70213196]
[1773102440511,11.69590643,85.5,85.471,1.84028184]
[1773102441493,29.23333537,85.519,85.47,4.21677532]
[1773102441494,1.9119334,85.507,85.473,1.84028184]
[1773102441690,1.9119334,85.507,85.481,1.84028184]
[1773102443124,1.9119334,85.489,85.451,1.84028184]
[1773102443710,6.12870872,85.48,85.453,1.84028184]
[1773102443917,11.69754819,85.488,85.461,1.84028184]
[1773102444216,1.9119334,85.497,85.461,1.84028184]
[1773102444821,1.9119334,85.489,85.453,1.84028184]
[1773102445022,13.60867522,85.494,85.461,1.84028184]
[1773102445320,4.21677532,85.49,85.461,1.84028184]
[1773102445614,1.9119334,85.488,85.462,13.54138876]
[1773102446112,4.21677532,85.49,85.463,1.84028184]
[1773102447207,11.69741136,85.489,85.463,1.84028184]
[1773102447402,1.9119334,85.488,85.463,1.84028184]
[1773102448003,11.69741136,85.489,85.464,11.70083309]
[1773102448205,11.69629358,85.498,85.465,1.84028184]
[1773102449924,11.69629358,85.498,85.467,1.84028184]
[1773102450221,13.60822698,85.498,85.467,1.84028184]
[1773102450425,1.9119334,85.489,85.461,11.70112425]
[1773102450808,1.9119334,85.489,85.456,1.84028184]
[1773102451012,1.9119334,85.489,85.461,1.84028184]
[1773102451205,1.9119334,85.497,85.461,1.84028184]
[1773102451401,1.9119334,85.489,85.456,1.84028184]
[1773102451910,1.9119334,85.487,85.458,1.84028184]
[1773102454127,1.85920909,85.479,85.458,1.84028184]
[1773102454329,1.85920909,85.479,85.442,76.9524292]
[1773102454330,11.69726572,85.491,85.461,1.84284059]
[1773102454510,1.85920909,85.49,85.461,1.84284059]
[1773102454826,1.85920909,85.489,85.461,1.84284059]
[1773102455810,1.85920909,85.5,85.463,1.84284059]
[1773102456012,5.47215037,104.65,85.47,6.05961591]
[1773102456013,1.85920909,85.509,85.47,6.05961591]
[1773102456246,1.85920909,85.509,85.47,4.21677532]
[1773102456534,1.85920909,85.509,85.471,1.84284059]
[1773102457032,1.85920909,85.489,85.464,1.84284059]
[1773102457717,1.85920909,85.499,85.471,1.84284059]
[1773102457920,1.85920909,85.497,85.472,1.84284059]
[1773102458320,1.85920909,85.575,85.472,1.84284059]
[1773102458516,0.1,85.59,85.48,4.21677532]
[1773102458517,1.85920909,85.566,85.48,4.21677532]
[1773102458716,1.85920909,85.566,85.54,4.21677532]
[1773102458920,1.85920909,85.573,85.541,1.84284059]
[1773102459322,1.85920909,85.573,85.55,4.21677532]
[1773102459521,1.85920909,85.589,85.55,4.21677532]
[1773102459840,1.85920909,85.567,85.531,13.53441072]
[1773102460149,1.85920909,85.567,85.532,1.84284059]
[1773102460319,1.85920909,85.567,85.531,11.69157013]
[1773102460320,1.85920909,85.579,85.541,1.84284059]
[1773102460520,1.85920909,85.579,85.531,40.9207385]
[1773102460521,1.85920909,85.579,85.551,1.84284059]
[1773102460938,1.85920909,85.588,85.56,11.24173765]
[1773102461720,0.1,85.59,85.571,1.84284059]
[1773102463225,1.85920909,85.589,85.56,11.24173765]
[1773102463425,11.6837444,85.589,85.56,11.24173765]
[1773102463625,11.6837444,85.589,85.555,1.84284059]
[1773102463626,1.85920909,85.586,85.552,11.68879745]
[1773102463825,1.85920909,85.579,85.552,11.68879745]
[1773102466147,1.85920909,85.569,85.54,13.08457824]
[1773102466533,1.87351371,85.559,85.523,11.6927307]
[1773102467030,1.87351371,85.549,85.523,11.6927307]
[1773102467226,1.87351371,85.549,85.521,1.95682884]
[1773102467446,1.87351371,85.549,85.526,11.6922728]
[1773102468140,11.68873009,85.553,85.53,11.6917425]
[1773102468443,11.68873009,85.553,85.494,3.69383402]
[1773102468444,11.24173765,85.57,85.541,1.9603669]
[1773102468738,40.89931756,85.576,85.534,11.69125727]
[1773102468739,11.24173765,85.56,85.534,11.69125727]
[1773102468944,1.87351371,85.559,85.534,11.69125727]
[1773102469446,1.87351371,85.549,85.533,86.1661369]
[1773102470145,40.89931756,85.576,85.513,1.97368058]
[1773102470146,1.28102836,85.547,85.513,1.97368058]
[1773102470347,11.2515882,85.54,85.513,1.97368058]
[1773102470852,11.2515882,85.53,85.513,1.97368058]
[1773102471941,11.2515882,85.54,85.513,1.97368058]
[1773102472139,11.69057389,85.539,85.513,1.97368058]
[1773102473033,11.2515882,85.53,85.513,1.97368058]
[1773102473341,40.91700861,85.539,85.513,1.97368058]
[1773102474547,22.94349031,85.53,85.505,11.69509593]
[1773102474750,1.28770778,85.529,85.5,22.94739532]
[1773102475048,1.28770778,85.529,85.501,1.97368058]
[1773102475246,22.94349031,85.53,85.501,1.97368058]
[1773102477649,11.2515882,85.52,85.491,1.97368058]
[1773102479952,11.2515882,85.51,85.486,70.9065901]
[1773102480152,11.2515882,85.51,85.487,13.6713656]
[1773102480332,11.2515882,85.51,85.488,1.97368058]
[1773102480838,58.44774343,85.547,85.487,11.69768502]
[1773102480839,1.30397605,85.582,85.501,1.97368058]
[1773102481044,35.13,85.632,85.551,1.97368058]
[1773102481045,1.30397605,85.579,85.551,1.97368058]
[1773102481246,11.2515882,85.57,85.505,1.97368058]
[1773102481555,11.2515882,85.57,85.531,1.97368058]
[1773102481756,12.55839331,85.57,85.531,1.97368058]
[1773102481959,11.2515882,85.56,85.533,1.97368058]
[1773102483443,1.30680511,85.568,85.533,1.97368058]
[1773102483746,11.68647524,85.569,85.533,1.97368058]